bitfinex/quotes_SOLUSD_20250223
["timestamp","ask_amount","ask_price","bid_price","bid_amount"]
[1740322373622,10.76173587,169.03,169.02,0.03]
[1740322377425,12.30393587,169.04,169.02,0.03]
[1740322378934,10.76173587,169.03,169.02,0.03]
[1740322380523,12.30393587,169.04,169.02,0.03]
[1740322380934,10.76173587,169.03,169.02,0.03]
[1740322383465,91.76173587,169.03,169.02,0.03]
[1740322391557,20.0,169.01,169.0,0.03]
[1740322391731,21.6122,169.0,168.98,0.063]
[1740322391921,10.76173587,168.99,168.98,0.063]
[1740322393953,81.0,168.98,168.94,0.063]
[1740322394153,10.76173587,168.95,168.94,0.063]
[1740322395124,13.37393587,168.95,168.9,0.12]
[1740322395348,10.76173587,168.91,168.9,0.12]
[1740322402156,10.76173587,168.92,168.9,0.12]
[1740322402357,10.76173587,168.91,168.9,0.12]
[1740322402778,10.76173587,168.91,168.9,0.15]
[1740322403678,10.76173587,168.93,168.9,0.15]
[1740322404482,10.82473587,168.94,168.9,0.15]
[1740322404661,0.063,168.94,168.9,0.15]
[1740322405067,8.62600229,168.93,168.9,0.15]
[1740322405909,8.68900229,168.94,168.9,0.15]
[1740322406201,8.62600229,168.93,168.9,0.15]
[1740322406383,8.62600229,168.91,168.9,0.15]
[1740322407482,8.62600229,168.92,168.9,0.15]
[1740322407875,8.62600229,168.91,168.9,0.15]
[1740322408298,81.0,168.93,168.9,0.15]
[1740322408498,8.62600229,168.91,168.9,0.15]
[1740322423710,8.62600229,168.91,168.87,0.03]
[1740322423711,61.77966031,168.91,168.87,0.03]
[1740322423995,43.13001145,168.88,168.87,0.03]
[1740322424207,8.62600229,168.88,168.87,0.03]
[1740322425302,6.4827,168.92,168.87,0.03]
[1740322425303,20.0,168.89,168.87,0.03]
[1740322425502,8.62600229,168.88,168.87,0.03]
[1740322431120,8.62600229,168.9,168.87,0.03]
[1740322431422,81.0,168.91,168.87,0.03]
[1740322431636,89.62600229,168.91,168.87,0.03]
[1740322431825,81.0,168.91,168.87,0.03]
[1740322432008,81.0,168.93,168.87,0.03]
[1740322432213,8.62600229,168.91,168.87,0.03]
[1740322433330,8.62600229,168.9,168.87,0.03]
[1740322434338,8.62600229,168.88,168.87,0.03]
[1740322435816,8.62600229,168.87,168.82,1.65600229]
[1740322437030,8.62600229,168.87,168.81,8.62600229]
[1740322437227,8.62600229,168.82,168.74,8.62600229]
[1740322437531,8.62600229,168.8,168.74,8.62600229]
[1740322437824,1.6604,168.85,168.75,8.62600229]
[1740322438031,1.6604,168.85,168.76,8.62600229]
[1740322438223,8.62600229,168.81,168.76,8.62600229]
[1740322438428,8.62600229,168.81,168.73,18.67964886]
[1740322438626,8.62600229,168.81,168.76,8.62600229]
[1740322438840,8.62600229,168.81,168.75,8.62600229]
[1740322439202,8.62600229,168.82,168.77,8.62600229]
[1740322439508,8.62600229,168.83,168.77,8.62600229]
[1740322441027,8.62600229,168.84,168.79,8.62600229]
[1740322441326,8.62600229,168.86,168.81,8.62600229]
[1740322441515,8.62600229,168.86,168.8,8.62600229]
[1740322442832,8.62600229,168.85,168.8,8.62600229]
[1740322443328,8.62600229,168.85,168.78,89.4959]
[1740322443329,8.62600229,168.85,168.79,8.62600229]
[1740322443534,8.62600229,168.84,168.79,8.62600229]
[1740322443715,8.62600229,168.85,168.79,8.62600229]
[1740322444213,8.62600229,168.85,168.8,8.62600229]
[1740322444535,8.62600229,168.84,168.79,8.62600229]
[1740322445209,8.62600229,168.83,168.78,90.52600229]
[1740322446435,8.62600229,168.82,168.78,81.9]
[1740322446742,8.62600229,168.82,168.76,8.62600229]
[1740322447439,8.62600229,168.82,168.77,8.62600229]
[1740322447634,8.62600229,168.82,168.74,12.0759]
[1740322447936,8.62600229,168.81,168.75,8.62600229]
[1740322448138,8.62600229,168.81,168.76,8.62600229]
[1740322448836,8.62600229,168.81,168.75,8.62600229]
[1740322450539,8.62600229,168.81,168.74,7.5959]
[1740322450717,8.62600229,168.8,168.75,8.62600229]
[1740322451439,8.62600229,168.8,168.75,8.65600229]
[1740322451934,8.62600229,168.81,168.75,8.65600229]
[1740322452530,8.62600229,168.8,168.75,8.65600229]
[1740322453323,8.62600229,168.79,168.75,0.03]
[1740322454750,8.62600229,168.8,168.75,0.03]
[1740322455651,81.0,168.83,168.76,8.62600229]
[1740322455652,8.62600229,168.81,168.76,8.62600229]
[1740322455855,8.62600229,168.82,168.76,8.62600229]
[1740322456137,81.0,168.83,168.79,8.62600229]
[1740322456355,8.62600229,168.84,168.79,8.62600229]
[1740322457238,10.28260229,168.85,168.79,8.62600229]
[1740322458351,8.62600229,168.84,168.79,8.62600229]
[1740322460846,8.62600229,168.84,168.78,8.62600229]
[1740322461144,8.62600229,168.83,168.78,8.62600229]
[1740322462731,8.62600229,168.84,168.78,8.62600229]
[1740322463131,8.63631965,168.84,168.78,8.63631965]
[1740322463545,8.63631965,168.83,168.78,8.63631965]
[1740322463742,8.63631965,168.83,168.77,8.63631965]
[1740322463924,8.63631965,168.82,168.77,8.63631965]
[1740322464126,8.63631965,168.82,168.78,0.03]
[1740322465049,8.63631965,168.8,168.78,0.03]
[1740322465224,8.63631965,168.79,168.78,0.03]
[1740322465427,8.63631965,168.8,168.78,0.03]
[1740322466530,8.63631965,168.79,168.78,0.03]
[1740322467523,8.64063369,168.79,168.78,0.03]
[1740322467728,8.64063369,168.8,168.78,0.03]
[1740322467955,8.64063369,168.81,168.78,0.03]
[1740322468556,8.64063369,168.8,168.78,0.03]
[1740322469442,8.64063369,168.79,168.78,0.03]
[1740322471656,12.20033369,168.79,168.75,0.03]
[1740322471845,8.64063369,168.76,168.75,0.03]
[1740322473654,20.0,168.72,168.61,3.01889604]
[1740322473846,85.48,168.71,168.61,11.65952973]
[1740322474153,20.0,168.72,168.61,11.65952973]
[1740322474154,89.64063369,168.7,168.65,8.64063369]
[1740322474342,8.64063369,168.7,168.65,8.64063369]
[1740322474539,8.64063369,168.7,168.64,8.64063369]
[1740322474743,101.0,168.72,168.65,8.64063369]
[1740322474937,8.64063369,168.71,168.65,8.64063369]
[1740322475137,8.64063369,168.7,168.65,8.64063369]
[1740322475432,8.64063369,168.7,168.64,8.64063369]
[1740322475637,8.64063369,168.7,168.65,8.64063369]
[1740322475943,8.64063369,168.7,168.64,8.64063369]
[1740322476459,8.64063369,168.7,168.65,8.64063369]
[1740322476635,8.64063369,168.71,168.66,8.64063369]
[1740322477034,89.64063369,168.72,168.66,8.64063369]
[1740322477245,89.64063369,168.72,168.67,8.64063369]
[1740322477444,89.64063369,168.72,168.66,8.64063369]
[1740322478663,3.0284479,168.78,168.7,8.64063369]
[1740322478664,8.64063369,168.75,168.7,8.64063369]
[1740322480665,0.063,168.78,168.74,8.64063369]
[1740322481247,8.70363369,168.78,168.73,8.64063369]
[1740322481440,8.70363369,168.78,168.7,81.9]
[1740322481441,8.70363369,168.78,168.72,8.64063369]
[1740322481761,13.56693318,168.78,168.72,13.50393318]
[1740322482467,13.56693318,168.78,168.73,13.50393318]
[1740322482662,0.063,168.78,168.74,13.50393318]
[1740322483050,0.063,168.78,168.77,13.50393318]
[1740322488173,0.063,168.78,168.76,13.50393318]
[1740322488371,0.063,168.78,168.75,13.50393318]
[1740322489159,0.063,168.78,168.76,13.50393318]
[1740322489352,0.063,168.78,168.77,13.50393318]
[1740322491774,0.063,168.78,168.75,13.50393318]
[1740322491958,0.063,168.78,168.74,13.50393318]
[1740322492274,0.063,168.78,168.75,13.50393318]
[1740322493773,0.063,168.78,168.76,13.50393318]
[1740322494078,0.063,168.78,168.77,13.50393318]
[1740322497367,0.063,168.78,168.77,32.15358204]
[1740322499158,0.063,168.78,168.77,28.09869615]
[1740322499359,0.063,168.78,168.77,109.99869615]
[1740322500475,0.063,168.78,168.77,110.99869615]
[1740322500688,0.063,168.78,168.77,111.99869615]
[1740322501974,0.063,168.78,168.77,110.99869615]
[1740322505087,0.063,168.78,168.77,109.99869615]
[1740322507202,0.063,168.78,168.77,9.44904729]
[1740322507707,0.063,168.78,168.76,13.50393318]
[1740322509088,0.063,168.78,168.77,13.50393318]
[1740322511723,0.063,168.78,168.77,115.05358204]
[1740322513605,0.063,168.78,168.77,111.18198446]
[1740322513784,0.063,168.78,168.77,112.07032692]
[1740322513980,0.063,168.85,168.79,1.0]
[1740322514288,0.063,168.85,168.84,8.6323356]
[1740322515582,0.063,168.85,168.84,33.48134062]
[1740322515985,0.063,168.85,168.84,52.13098948]
[1740322516189,0.063,168.85,168.84,134.03098948]
[1740322519103,0.063,168.85,168.84,115.38134062]
[1740322519503,0.063,168.85,168.82,17.98134062]
[1740322521210,0.063,168.85,168.82,4.5]
[1740322521517,13.48134062,168.84,168.8,81.9]
[1740322521701,13.48134062,168.83,168.78,17.96134062]
[1740322521901,13.48134062,168.83,168.78,4.48]
[1740322522107,13.48134062,168.82,168.78,4.48]
[1740322522509,13.48134062,168.82,168.77,13.51134062]
[1740322522718,13.48134062,168.83,168.77,13.51134062]
[1740322523104,0.063,168.85,168.79,13.48134062]
[1740322523319,13.54434062,168.85,168.79,13.48134062]
[1740322523514,13.48134062,168.84,168.79,13.48134062]
[1740322524101,13.54434062,168.85,168.79,13.48134062]
[1740322524516,13.54434062,168.85,168.8,13.48134062]
[1740322524919,0.063,168.85,168.82,13.48134062]
[1740322526241,0.063,168.85,168.84,13.48134062]
[1740322526612,0.063,168.85,168.83,13.48134062]
[1740322527422,0.063,168.85,168.82,13.48134062]
[1740322528225,13.48134062,168.83,168.78,4.51]
[1740322528415,13.48134062,168.82,168.78,0.03]
[1740322529928,13.48134062,168.83,168.78,13.51134062]
[1740322530130,13.48134062,168.83,168.78,0.03]
[1740322530332,13.48134062,168.82,168.78,0.03]
[1740322530731,13.48134062,168.83,168.78,0.03]
[1740322532734,13.48134062,168.82,168.78,0.03]
[1740322533250,13.48134062,168.83,168.78,0.03]
[1740322533846,13.48134062,168.83,168.78,13.51134062]
[1740322538433,13.54434062,168.83,168.78,13.51134062]
[1740322539118,13.48134062,168.82,168.78,0.03]
[1740322540130,0.063,168.83,168.78,13.51134062]
[1740322540331,13.54434062,168.83,168.78,13.51134062]
[1740322540636,13.54434062,168.83,168.78,0.03]
[1740322540826,13.48134062,168.82,168.78,0.03]
[1740322541542,0.063,168.83,168.78,13.51134062]
[1740322543624,0.063,168.83,168.78,8.66663412]
[1740322544664,0.063,168.83,168.8,8.63663412]
[1740322544818,0.063,168.83,168.82,8.63663412]
[1740322545617,0.063,168.83,168.82,109.18628298]
[1740322547728,0.063,168.83,168.82,114.03370968]
[1740322553223,0.063,168.83,168.82,100.54964886]
[1740322553530,0.063,168.83,168.82,114.03370968]
[1740322554650,0.063,168.83,168.82,117.53370968]
[1740322554851,0.063,168.83,168.82,118.53370968]
[1740322555149,0.063,168.83,168.82,119.53370968]
[1740322555351,0.063,168.9,168.86,20.0]
[1740322555648,0.063,168.9,168.89,13.48406082]
[1740322558160,0.063,168.9,168.86,85.4]
[1740322558360,13.48406082,168.87,168.81,81.9]
[1740322558529,13.48406082,168.83,168.78,3.53]
[1740322558733,13.48406082,168.83,168.78,0.03]
[1740322558956,13.48406082,168.83,168.78,18.67964886]
[1740322559458,13.48406082,168.81,168.78,0.03]
[1740322559858,13.48406082,168.8,168.78,0.03]
[1740322560655,13.48406082,168.83,168.78,0.03]
[1740322560846,13.48406082,168.84,168.78,13.51406082]
[1740322561154,1.5473,168.89,168.8,13.48406082]
[1740322561355,13.48406082,168.85,168.8,13.48406082]
[1740322561562,20.0,168.87,168.8,13.48406082]
[1740322561563,13.48406082,168.86,168.8,13.48406082]
[1740322561762,33.48406082,168.87,168.82,13.48406082]
[1740322563176,0.063,168.83,168.81,13.48406082]
[1740322563459,0.063,168.83,168.82,13.48406082]
[1740322564040,0.063,168.83,168.82,32.13370968]
[1740322567663,0.063,168.83,168.82,114.03370968]
[1740322569171,0.063,168.83,168.82,117.53370968]
[1740322569546,0.063,168.9,168.82,117.53370968]
[1740322569753,0.063,168.9,168.89,13.48406082]
[1740322571675,0.063,168.9,168.88,13.48406082]
[1740322572169,0.063,168.9,168.87,13.48406082]
[1740322572851,0.063,168.9,168.88,13.48406082]
[1740322574081,0.063,168.9,168.89,13.48406082]
[1740322574662,0.063,168.9,168.89,114.03370968]
[1740322576268,0.063,168.9,168.89,115.9215252]
[1740322576576,0.063,168.9,168.89,228.09370968]
[1740322577583,0.063,168.94,168.93,38.64964886]
[1740322577783,0.063,168.94,168.93,138.55370968]
[1740322581473,0.063,168.94,168.93,118.55370968]
[1740322588290,0.063,168.94,168.93,133.0377705]
[1740322588483,0.063,168.94,168.93,137.5377705]
[1740322588781,0.063,168.95,168.94,19.64964886]
[1740322588987,0.063,168.95,168.94,47.50518022]
[1740322591177,0.063,168.95,168.94,33.0211194]
[1740322591486,0.063,168.95,168.94,45.6177705]
[1740322592577,0.063,168.95,168.94,32.13370968]
[1740322594463,0.063,168.95,168.94,117.53370968]
[1740322595181,0.063,168.95,168.94,114.03370968]
[1740322599571,0.063,168.95,168.94,114.06370968]
[1740322602580,0.063,168.95,168.94,100.57964886]
[1740322602786,0.063,168.95,168.94,81.93]
[1740322602983,1.652,168.95,168.94,81.93]
[1740322603288,15.13606082,168.95,168.94,0.03]
[1740322603693,10.27823459,168.95,168.94,0.03]
[1740322605687,15.13231076,168.95,168.94,0.03]
[1740322606074,15.13231076,168.95,168.86,13.48031076]
[1740322606276,13.48031076,168.89,168.84,13.48031076]
[1740322606502,13.48031076,168.89,168.83,204.90031076]
[1740322606693,13.48031076,168.89,168.84,13.48031076]
[1740322606894,13.48031076,168.9,168.84,13.48031076]
[1740322607482,13.48031076,168.9,168.85,13.48031076]
[1740322607682,13.48031076,168.92,168.87,13.48031076]
[1740322607890,13.48031076,168.93,168.88,13.48031076]
[1740322608076,6.6554,168.94,168.9,13.48031076]
[1740322608503,6.6554,168.94,168.89,13.48031076]
[1740322608896,20.13571076,168.94,168.88,13.48031076]
[1740322609095,13.48031076,168.91,168.86,13.48031076]
[1740322609595,13.48031076,168.92,168.86,13.48031076]
[1740322609795,13.48031076,168.92,168.87,13.48031076]
[1740322610015,20.13571076,168.94,168.88,13.48031076]
[1740322610179,20.13571076,168.94,168.89,13.48031076]
[1740322610521,20.13571076,168.94,168.88,13.48031076]
[1740322611198,20.13571076,168.94,168.89,13.51031076]
[1740322611399,20.19871076,168.94,168.89,13.51031076]
[1740322612201,6.7184,168.94,168.9,13.48031076]
[1740322612400,0.063,168.94,168.91,13.48031076]
[1740322613205,0.063,168.94,168.93,13.48031076]
[1740322618783,0.063,168.94,168.93,114.02995962]
[1740322624116,0.063,168.94,168.93,117.52995962]
[1740322631597,0.063,168.94,168.93,98.88031076]
[1740322632189,0.063,168.94,168.93,117.52995962]
[1740322635910,0.063,168.94,168.93,114.02995962]
[1740322636115,0.063,168.94,168.93,114.05995962]
[1740322638617,0.063,168.94,168.93,0.03]
[1740322638618,13.54331076,168.94,168.93,0.03]
[1740322639311,0.063,168.94,168.93,0.03]
[1740322640201,13.54331076,168.94,168.93,0.03]
[1740322641794,0.063,168.94,168.93,0.03]
[1740322644423,13.54331076,168.94,168.93,0.03]
[1740322645834,19.93341076,168.94,168.93,0.03]
[1740322646322,19.93341076,168.94,168.89,0.03]
[1740322646624,13.48031076,168.9,168.89,0.03]
[1740322647129,13.48031076,168.92,168.89,0.03]
[1740322647331,13.48031076,168.91,168.89,0.03]
[1740322648030,13.48031076,168.9,168.89,0.03]
[1740322649607,13.48031076,168.91,168.89,0.03]
[1740322650926,13.48031076,168.92,168.89,0.03]
[1740322651228,81.063,168.94,168.9,13.48031076]
[1740322651527,0.063,168.94,168.91,13.48031076]
[1740322651727,0.063,168.94,168.9,13.48031076]
[1740322653331,13.54331076,168.94,168.89,13.51031076]
[1740322655231,0.063,168.94,168.89,13.51031076]
[1740322655606,13.54331076,168.94,168.89,13.51031076]
[1740322656234,13.54331076,168.94,168.89,0.03]
[1740322656431,13.54331076,168.94,168.89,13.51031076]
[1740322656622,0.063,168.94,168.89,13.51031076]
[1740322656823,0.063,168.94,168.89,95.41031076]
[1740322657529,0.063,168.94,168.9,13.48031076]
[1740322657838,0.063,168.94,168.89,95.41031076]
[1740322659048,0.063,168.94,168.9,13.48031076]
[1740322661546,13.54331076,168.94,168.89,95.41031076]
[1740322665442,0.063,168.94,168.89,95.41031076]
[1740322667561,13.54331076,168.94,168.89,95.41031076]
[1740322667851,0.063,168.94,168.91,13.48031076]
[1740322669650,0.063,168.94,168.91,8.62388952]
[1740322670132,0.063,168.94,168.93,8.62388952]
[1740322672975,0.063,168.94,168.93,109.17353838]
[1740322673753,0.063,168.94,168.93,114.01388198]
[1740322676486,0.063,168.94,168.93,117.51388198]
[1740322676651,0.063,168.94,168.93,118.51388198]
[1740322676866,0.063,168.94,168.93,131.9781151]
[1740322677351,0.063,168.94,168.93,118.51388198]
[1740322677687,0.063,168.94,168.93,117.51388198]
[1740322679176,0.063,168.94,168.93,429.51388198]
[1740322680976,0.063,168.94,168.93,117.51388198]
[1740322682888,0.063,168.95,168.94,18.64964886]
[1740322683071,0.063,168.95,168.94,131.8655524]
[1740322683272,0.063,168.95,168.94,131.9781151]
[1740322683496,0.063,169.0,168.98,18.64964886]
[1740322683669,0.063,169.0,168.99,13.46423312]
[1740322685194,0.063,169.0,168.99,114.01388198]
[1740322688279,0.063,169.0,168.99,117.51388198]
[1740322688676,0.063,169.0,168.99,226.99388198]
[1740322688878,0.063,169.0,168.99,227.99388198]
[1740322689077,0.063,169.0,168.99,226.99388198]
[1740322689298,0.063,169.0,168.99,228.99388198]
[1740322689797,0.063,169.0,168.99,231.95544082]
[1740322689984,0.063,169.0,168.99,230.95544082]
[1740322695603,0.063,169.0,168.99,226.10138264]
[1740322706329,24.38672958,169.1,169.0,18.64964886]
[1740322706543,24.38672958,169.1,169.04,8.61017494]
[1740322706706,24.38672958,169.1,169.04,90.51017494]
[1740322707832,24.38672958,169.1,169.05,8.61017494]
[1740322708824,24.38672958,169.1,169.04,90.51017494]
[1740322709334,1.5292,169.09,169.04,90.51017494]
[1740322711237,8.61017494,169.05,169.04,81.9]
[1740322711434,8.61017494,169.05,169.0,199.97017494]
[1740322711621,14.90847494,169.06,169.01,18.64964886]
[1740322712021,14.90847494,169.06,169.01,27.2598238]
[1740322712418,8.61017494,169.04,169.0,191.36]
[1740322714633,14.90847494,169.06,169.01,27.2598238]
[1740322714830,6.2983,169.06,169.02,8.61017494]
[1740322715220,6.2983,169.06,169.03,8.61017494]
[1740322715419,1.5292,169.09,169.05,8.61017494]
[1740322715728,1.5292,169.09,169.06,8.61017494]
[1740322716243,1.5292,169.09,169.05,90.51017494]
[1740322717633,1.5292,169.09,169.06,8.61017494]
[1740322721033,15.77655464,169.1,169.06,8.61017494]
[1740322722928,15.77655464,169.1,169.05,81.9]
[1740322723138,15.77655464,169.1,169.05,90.51017494]
[1740322724641,15.77655464,169.1,169.01,81.9]
[1740322724642,8.61017494,169.06,169.01,81.9]
[1740322724848,20.0,169.06,169.01,81.9]
[1740322725056,8.61017494,169.02,169.01,81.9]
[1740322725230,8.61017494,169.02,168.98,85.4]
[1740322725427,8.61017494,169.02,168.98,81.9]
[1740322725428,8.61017494,169.0,168.98,81.9]
[1740322725625,8.61017494,168.99,168.95,4.48]
[1740322725828,8.61017494,168.99,168.95,81.9]
[1740322726263,7.7913,169.02,168.95,81.9]
[1740322726721,8.61017494,169.01,168.95,90.51017494]
[1740322726921,1.6036,169.02,168.99,8.61017494]
[1740322727150,7.7913,169.06,169.01,8.61017494]
[1740322727446,7.7913,169.06,169.0,18.64964886]
[1740322727743,7.7913,169.06,169.02,8.61017494]
[1740322727948,16.40147494,169.06,169.01,8.61017494]
[1740322728263,16.40147494,169.06,169.0,100.54964886]
[1740322728423,16.40147494,169.06,169.01,8.61017494]
[1740322728825,16.40147494,169.06,169.0,90.51017494]
[1740322729137,16.40147494,169.06,169.0,81.9]
[1740322729138,8.61017494,169.04,169.0,81.9]
[1740322729738,13.46209419,169.05,169.0,95.36209419]
[1740322730326,7.7913,169.06,169.0,81.9]
[1740322730647,13.46209419,169.05,169.0,81.9]
[1740322731454,21.25339419,169.06,169.01,13.46209419]
[1740322732032,7.7913,169.06,169.01,13.46209419]
[1740322732233,21.25339419,169.06,169.01,18.64964886]
[1740322732652,21.25339419,169.06,169.01,32.11174305]
[1740322732832,7.7913,169.06,169.01,32.11174305]
[1740322733032,1.6036,169.06,169.02,13.46209419]
[1740322733240,1.6036,169.06,169.01,32.11174305]
[1740322733440,15.06569419,169.06,169.01,32.11174305]
[1740322734450,1.6036,169.06,169.0,81.963]
[1740322734639,13.46209419,169.04,169.0,81.963]
[1740322736158,15.06569419,169.06,169.0,95.42509419]
[1740322736457,1.6036,169.06,169.0,95.42509419]
[1740322736650,15.06569419,169.06,169.0,95.42509419]
[1740322736853,13.46209419,169.05,169.0,81.963]
[1740322737355,13.46209419,169.05,169.0,95.42509419]
[1740322737542,15.06569419,169.06,169.01,13.46209419]
[1740322738147,15.06569419,169.06,169.0,95.42509419]
[1740322738547,1.6036,169.06,169.01,13.46209419]
[1740322741743,13.46209419,169.07,169.01,13.46209419]
[1740322742871,81.0,169.09,169.01,95.36209419]
[1740322743042,13.46209419,169.07,169.01,95.36209419]
[1740322744159,13.46209419,169.06,169.01,95.36209419]
[1740322744673,94.46209419,169.09,169.03,13.46209419]
[1740322744964,15.80655464,169.1,169.06,13.46209419]
[1740322745172,15.80655464,169.1,169.06,95.36209419]
[1740322745547,15.80655464,169.1,169.06,81.9]
[1740322746665,15.80655464,169.1,169.06,95.36209419]
[1740322748762,15.80655464,169.1,169.06,81.9]
[1740322749870,15.80655464,169.1,169.06,90.50893431]
[1740322750770,15.80655464,169.1,169.08,8.60893431]
[1740322751145,15.80655464,169.1,169.08,90.50893431]
[1740322751351,15.80655464,169.1,169.09,8.60893431]
[1740322753268,15.80655464,169.1,169.09,109.15858317]
[1740322756975,15.80655464,169.1,169.09,81.9]
[1740322757388,24.41548895,169.1,169.09,81.9]
[1740322758590,24.41548895,169.1,169.01,83.5598]
[1740322758878,8.60893431,169.05,169.01,81.963]
[1740322759045,8.60893431,169.06,169.01,81.963]
[1740322760684,8.60893431,169.04,169.01,0.063]
[1740322760868,8.60893431,169.03,169.01,0.063]
[1740322761457,8.60893431,169.02,169.01,0.063]
[1740322762082,8.60893431,169.03,169.01,0.063]
[1740322762381,8.60893431,169.02,169.01,0.063]
[1740322763788,13.46846824,169.02,169.01,0.063]
[1740322764692,81.0,169.07,169.01,0.063]
[1740322764989,13.46846824,169.06,169.01,13.53146824]
[1740322765563,13.46846824,169.07,169.02,13.46846824]
[1740322765766,13.46846824,169.08,169.02,13.46846824]
[1740322766178,1.5925,169.09,169.03,13.46846824]
[1740322766393,13.46846824,169.08,169.03,13.46846824]
[1740322766690,13.46846824,169.08,169.02,13.46846824]
[1740322768268,13.46846824,169.09,169.04,13.46846824]
[1740322770970,29.27502288,169.1,169.05,13.46846824]
[1740322771171,15.80655464,169.1,169.05,13.46846824]
[1740322771390,15.80655464,169.1,169.06,13.46846824]
[1740322771589,15.80655464,169.1,169.07,13.46846824]
[1740322775722,15.80655464,169.1,169.07,95.36846824]
[1740322778409,15.80655464,169.1,169.08,13.46846824]
[1740322778613,15.80655464,169.1,169.09,13.46846824]
[1740322778793,15.80655464,169.1,169.09,95.36846824]
[1740322780502,15.80655464,169.1,169.09,114.0181171]
[1740322781911,15.80655464,169.1,169.09,117.5181171]
[1740322785708,15.80655464,169.1,169.09,112.65302417]
[1740322788994,15.80655464,169.1,169.09,85.4]
[1740322792505,15.80655464,169.1,169.09,85.463]
[1740322793516,15.80655464,169.1,169.09,81.963]
[1740322793932,15.80655464,169.1,169.09,81.463]
[1740322795204,15.80655464,169.1,169.09,0.063]
[1740322795411,24.40992995,169.1,169.09,0.063]
[1740322797510,26.05252995,169.1,169.09,0.063]
[1740322798906,33.36322995,169.1,169.09,0.063]
[1740322800312,114.36322995,169.1,169.09,0.063]
[1740322800507,113.36322995,169.1,169.09,0.063]
[1740322800912,107.05252995,169.1,169.09,0.063]
[1740322802236,107.05252995,169.1,169.07,0.063]
[1740322802237,27.3107,169.08,169.07,0.063]
[1740322802409,1.0,169.07,169.02,0.063]
[1740322802611,8.60337531,169.03,169.02,0.063]
[1740322802920,8.60337531,169.04,169.02,0.063]
[1740322803128,8.60337531,169.03,169.02,0.063]
[1740322803725,13.46246023,169.05,169.02,0.063]
[1740322803919,81.0,169.06,169.02,0.063]
[1740322804218,13.46246023,169.04,169.02,0.063]
[1740322804745,13.46246023,169.05,169.02,0.063]
[1740322805540,81.0,169.06,169.02,13.52546023]
[1740322805922,81.0,169.06,169.03,13.46246023]
[1740322806117,0.03,169.07,169.04,13.46246023]
[1740322806334,0.03,169.07,169.04,94.86246023]
[1740322806539,13.49246023,169.07,169.04,81.4]
[1740322807558,0.03,169.07,169.04,81.4]
[1740322808947,0.03,169.07,169.04,94.86246023]
[1740322809129,0.03,169.07,169.05,13.46246023]
[1740322809324,0.03,169.07,169.06,32.11210909]
[1740322809645,0.03,169.07,169.06,113.51210909]
[1740322809859,0.03,169.07,169.06,116.61210909]
[1740322813449,0.03,169.07,169.06,226.05210909]
[1740322816577,0.03,169.07,169.06,227.05210909]
[1740322816789,15.80655464,169.1,169.09,20.0]
[1740322817084,15.80655464,169.1,169.09,117.96246023]
[1740322818167,3.9668957,169.1,169.09,137.61210909]
[1740322818671,0.063,169.11,169.1,19.64964886]
[1740322818848,0.063,169.11,169.1,38.51865981]
[1740322820173,0.063,169.11,169.1,142.88832004]
[1740322820372,0.063,169.11,169.1,128.53930909]
[1740322820576,0.063,169.11,169.1,142.00176932]
[1740322820962,0.063,169.12,169.11,21.22244886]
[1740322821159,0.063,169.12,169.11,48.14736932]
[1740322821474,0.063,169.12,169.11,132.64736932]
[1740322823268,0.063,169.12,169.11,444.64736932]
[1740322823469,0.03,169.14,169.13,21.0]
[1740322823793,0.03,169.14,169.13,141.13210909]
[1740322826273,0.03,169.14,169.13,117.96246023]
[1740322826466,0.03,169.14,169.13,122.50246023]
[1740322828477,13.52546023,169.2,169.13,122.50246023]
[1740322829500,13.52546023,169.2,169.15,13.46246023]
[1740322829986,13.52546023,169.2,169.14,13.46246023]
[1740322832070,13.52546023,169.2,169.14,94.86246023]
[1740322833190,13.46246023,169.19,169.14,81.4]
[1740322833492,13.46246023,169.16,169.14,81.4]